Cogmind - Beta 14 @@@ ROGUE MODE // 2025.03.27 @ 22:06:26 Player: GiggleBox Result: Destroyed self with Grenade Launcher Performance ------------- Evolutions (0) 0 Regions Visited (2) 400 Robots Destroyed (23) 115 Value Destroyed (512) 512 Prototype IDs (3) 60 Alien Tech Used (0) 0 Bonus (0) 0 TOTAL SCORE: 1087 Bonus ------- None Cogmind --------- Core Integrity 0/250 Matter 280/300 Energy 425/500 System Corruption 4% Temperature Danger (441) Movement Treading (240) Ox1 Location -10/Mines Parts ------- > --- POWER (1) -------- Ion Engine > --- PROPULSION (2) --- Light Treads > --- UTILITY (2) ------ Large Storage Unit High-capacity Battery > --- WEAPON (2) ------- Grenade Launcher > --- INVENTORY (15) --- Wheel Wheel Improved Heat Sink Structural Scanner Improved Terrain Scanner Seismic Detector Assault Rifle Assault Rifle Mining Claw Peak State ------------ > --- POWER ------------ Light Ion Engine > --- PROPULSION ------- Light Treads Light Treads > --- UTILITY ---------- Improved Heat Sink Large Storage Unit > --- WEAPON ----------- EM Pulse Gun Particle Gun > --- INVENTORY -------- Ion Engine Light Treads Wheel Wheel High-capacity Battery Improved Terrain Scanner Seismic Detector Assault Rifle Assault Rifle Mining Claw [Rating: 11] Favorites ----------- Power Light Ion Engine Engine Light Ion Engine Propulsion Light Treads Treads Light Treads Leg Aluminum Leg Wheel Wheel Utility Seismic Detector Device Seismic Detector Storage Large Storage Unit Protection Core Shielding Weapon EM Pulse Gun Energy Gun EM Pulse Gun Ballistic Gun Assault Rifle Launcher Grenade Launcher Slashing Weapon Mining Claw Build | -11 -10 -10 ------- Run | Yrd Mat Min Slots Evolved . | . . . Power . | . . . Propulsion . | . . . Utility . | . . . Weapon . | . . . Parts Attached 30 | 3 15 12 Power 1 | . . 1 Engine 1 | . . 1 Core . | . . . Reactor . | . . . Propulsion 9 | 2 2 5 Treads 5 | . 2 3 Leg . | . . . Wheel 4 | 2 . 2 Hover . | . . . Flight . | . . . Utility 8 | 1 3 4 Device 5 | 1 2 2 Storage 2 | . 1 1 Processor . | . . . Hackware . | . . . Protection 1 | . . 1 Artifact . | . . . Weapon 12 | . 10 2 Energy Gun 4 | . 3 1 Energy Cannon . | . . . Ballistic Gun 4 | . 4 . Ballistic Cannon . | . . . Launcher 1 | . . 1 Special Weapon . | . . . Impact Weapon . | . . . Slashing Weapon 3 | . 3 . Piercing Weapon . | . . . Special Melee Weapon . | . . . Unidentified Prototypes . | . . . Parts Lost 8 | . 2 6 Power 1 | . . 1 Propulsion 2 | . . 2 Utility 1 | . . 1 Weapon 4 | . 2 2 Highest Loss Streak 3 | . 1 3 To Critical Strikes . | . . . Average Slot Usage (%) 99 | . 99 99 Engine 14 | . 14 14 Treads 21 | . 17 25 Wheel 6 | . 10 2 Device 12 | . 14 12 Storage 14 | . 14 15 Energy Gun 21 | . 16 26 Ballistic Gun 5 | . 10 1 Peak Build Rating 11 | 7 9 11 Average Rating 8 | 6 8 8 On Entrance 7 | 6 7 8 Naked Turns . | . . . Heaviest Build 34 | 13 28 34 Greatest Support 40 | 20 40 40 Greatest Overweight (x) 1 | . . 1 Average Overweight (x) . | . . . Largest Inventory Capacity 15 | 8 15 15 Average Capacity 12 | 8 10 15 Most Carried 14 | 7 10 14 Average Carried 9 | 6 8 10 Final Capacity 15 | 8 15 15 Final Carried 10 | 5 10 9 Class Distribution -------------------- 100% | Mutant Dominant Class ---------------- Mutant | -10/Materials Mutant | -10/Mines Resources | -11 -10 -10 ----------- Run | Yrd Mat Min Matter Collected 526 | 222 190 114 Remotely . | . . . Salvage Created 749 | 91 469 189 Parts 47 | 4 29 14 Haulers Intercepted . | . . . Recyclers Shooed . | . . . Parts Field Recycled . | . . . Retrieved Matter . | . . . Parts Self-Destructed . | . . . Prevented . | . . . Kills | -11 -10 -10 ------- Run | Yrd Mat Min Combat Hostiles Destroyed 18 | . 11 7 Guns 17 | . 10 7 AOE 1 | . 1 . Classes Destroyed 8 | 2 4 2 Worker 2 | . . 2 Tunneler 1 | 1 . . Recycler 1 | 1 . . Operator 1 | . 1 . Watcher 2 | . 2 . Swarmer 6 | . 3 3 Grunt 10 | . 8 2 Assembled 2 | . . 2 Best Kill Streak 8 | 2 8 3 Combat Bots Only 6 | . 6 3 Max Kills in Single Turn 2 | 1 2 1 Gunslinging 1 | . 1 . Exploded 1 | . 1 . Melee . | . . . Uniques/NPCs Destroyed . | . . . Combat | -11 -10 -10 -------- Run | Yrd Mat Min Hostile Shots Fired 92 | . 52 40 Missed 28 | . 17 11 Damage Taken 1177 | . 495 682 Core 250 | . 114 136 Absorbed by Shields . | . . . Core Remaining (%) 100 | 100 . . Volleys Fired 65 | 4 32 29 Largest 2 | 2 2 2 Hottest 105 | 60 80 105 Shots Fired 126 | 8 62 56 Gun 124 | 8 62 54 Cannon . | . . . Launcher 2 | . . 2 Special . | . . . Kinetic 17 | 4 13 . Thermal 27 | . . 27 Explosive 2 | . . 2 Electromagnetic 80 | 4 49 27 Robot Hit Streak 9 | 2 5 9 Robot Miss Streak 6 | 3 6 3 Penetration Max . | . . . Secondary Targets 2 | . 2 . Max Gunslinging Chain 1 | . 1 . Shots Hit Robots 73 | 3 33 37 Core Hits 34 | 2 20 12 Critical Kills . | . . . Critical Parts Destroyed . | . . . Critical Strikes 2 | . . 2 Burn 1 | . . 1 Corrupt 1 | . . 1 Melee Attacks 13 | . 13 . Impact . | . . . Slashing 13 | . 13 . Piercing . | . . . Sneak Attacks . | . . . Combat Hostiles . | . . . Follow-up Attacks . | . . . Damage Inflicted 1378 | 39 688 651 Guns 1026 | 39 486 501 Cannons . | . . . Explosions 293 | . 180 113 Melee 22 | . 22 . Ramming 37 | . . 37 Kinetic 136 | 24 112 . Thermal 486 | . 180 306 Explosive 113 | . . 113 Electromagnetic 584 | 15 374 195 Impact . | . . . Slashing 22 | . 22 . Piercing . | . . . Highest Corruption 4 | . . 4 Average Corruption 3 | . . 3 Corruption Purged . | . . . Corruption Blocked . | . . . Effects 3 | . . 3 Message Errors 1 | . . 1 Heat Flow Errors 1 | . . 1 Alerts 1 | . . 1 Overload Shots . | . . . Overflow Damage 9 | . . 9 Projectiles . | . . . Explosions 9 | . . 9 Melee . | . . . Knockbacks . | . . . Impact . | . . . Kinetic . | . . . Secondary . | . . . Self-Inflicted Damage 123 | . 44 79 Shots 4 | . 2 2 Rammed 3 | . . 3 Targets Rammed 4 | . . 4 Kicked . | . . . Crushed 1 | . . 1 Highest Temperature 441 | . 142 441 Average Temperature 86 | . 51 119 Received Heat Transfer 330 | . 237 93 Effects 1 | . . 1 Energy Bleed 1 | . . 1 Siege Activations . | . . . Robots Corrupted . | . . . Combat Hostiles . | . . . Parts Fried 1 | . 1 . Impact Corruptions . | . . . Robots Melted . | . . . Combat Hostiles . | . . . Parts Melted 1 | . 1 . Heat Transferred 977 | . 200 777 Parts Sabotaged . | . . . Parts Stolen . | . . . Parts Stripped . | . . . Power Chain Reactions 3 | . 3 . Alert | -11 -10 -10 ------- Run | Yrd Mat Min Peak Influence 239 | 10 239 157 Initial 37 | . 6 37 Average 71 | 6 98 48 Maximum Alert Level 1 | . 1 . Low Security (%) 96 | 100 92 100 Level 1 3 | . 7 . Level 2 . | . . . Level 3 . | . . . Level 4 . | . . . Level 5 . | . . . High Security . | . . . Max Security . | . . . Squads Dispatched 2 | . 2 . Investigation 1 | . 1 . Extermination . | . . . Reinforcement 1 | . 1 . Assault . | . . . Garrison . | . . . Intercept . | . . . Searches Triggered . | . . . Construction Impeded . | . . . Haulers Reinforced . | . . . Active Scanning Responses . | . . . Cargo Convoy Interrupts . | . . . Stealth | -11 -10 -10 --------- Run | Yrd Mat Min Distress Signals 1 | . . 1 Communications Jammed . | . . . Distress Signals . | . . . Times Spotted 26 | . 17 9 Peak Tracking Total 5 | . 5 3 Tactical Retreats 3 | . 1 2 Traps | -11 -10 -10 ------- Run | Yrd Mat Min Traps Triggered 2 | . 2 . Indirectly . | . . . Trap Hack Attempts . | . . . Triggered . | . . . Disarmed . | . . . Reprogrammed . | . . . Reused 2 | . . 2 Traps Extracted . | . . . Installed 4 | . . 4 Triggered . | . . . Most Traps Carried 4 | . . 4 Machines | -11 -10 -10 ---------- Run | Yrd Mat Min Machines Disabled 1 | . 1 . Max in Single Turn 1 | . 1 . Machines Repaired . | . . . Machines Dismantled . | . . . Machines Sabotaged . | . . . Overloaded Fab Kills . | . . . Hacking | -11 -10 -10 --------- Run | Yrd Mat Min Machines Accessed 6 | . 6 . Terminals 6 | . 6 . Fabricators . | . . . Repair Stations . | . . . Recycling Units . | . . . Scanalyzers . | . . . Garrison Access . | . . . Total Hacks 26 | . 26 . Successful 19 | . 19 . Failed 7 | . 7 . Catastrophic . | . . . Database Lockouts . | . . . Manual 17 | . 17 . Terminals 26 | . 26 . Fabricators . | . . . Repair Stations . | . . . Recycling Units . | . . . Scanalyzers . | . . . Garrison Access . | . . . Terminal Hacks 8 | . 8 . Robot Analysis 2 | . 2 . Prototype ID Bank 2 | . 2 . Branch Access Points 1 | . 1 . Terminal Index 1 | . 1 . Investigation Status 1 | . 1 . Hauler Manifests 1 | . 1 . Fabricator Hacks . | . . . Repair Station Hacks . | . . . Recycling Unit Hacks . | . . . Scanalyzer . | . . . Garrison Access Hacks . | . . . Unauthorized Hacks 11 | . 11 . Terminals 11 | . 11 . Assimilate 1 | . 1 . Botnet 3 | . 3 . Operators 1 | . 1 . Skim 6 | . 6 . Fabricators . | . . . Repair Stations . | . . . Recycling Units . | . . . Scanalyzers . | . . . Garrison Access . | . . . Data Cores Recovered . | . . . Used . | . . . Hacking Detections 6 | . 6 . Full Trace Events 1 | . 1 . Feedback Events . | . . . Feedback Blocked . | . . . Robot Schematics Acquired . | . . . Robots Built . | . . . Authchips . | . . . Time . | . . . Total Robot Build Rating . | . . . Part Schematics Acquired . | . . . Parts Built . | . . . Authchips . | . . . Time . | . . . Total Part Build Rating . | . . . Parts Repaired . | . . . Time . | . . . Parts Recycled . | . . . Recycled Matter . | . . . Retrieved Matter . | . . . Retrieved Components . | . . . Parts Scanalyzed . | . . . Part Schematics Acquired . | . . . Parts Damaged . | . . . Bothacking | -11 -10 -10 ------------ Run | Yrd Mat Min Used RIF Installer . | . . . Robots Hacked . | . . . Non-combat . | . . . Combat . | . . . Robot Hacks Applied . | . . . Relay Couplers Released . | . . . Fabnet Peak Effective % . | . . . Robots Rewired . | . . . Allies Hacked . | . . . Hacks Repelled . | . . . Allies | -11 -10 -10 -------- Run | Yrd Mat Min Total Allies . | . . . Largest Group . | . . . Highest-Rated Group . | . . . Highest-Rated Ally . | . . . Total Orders . | . . . Ally Attacks . | . . . Total Damage . | . . . Kills . | . . . Allies Corrupted . | . . . Allies Melted . | . . . Intel | -11 -10 -10 ------- Run | Yrd Mat Min Robot Analysis Total 2 | . 2 . Derelict Logs Recovered 1 | . . 1 Drone Launches . | . . . Drone Recoveries . | . . . Exploration | -11 -10 -10 ------------- Run | Yrd Mat Min Turns Passed 2071 | 36 979 1056 Spaces Moved 961 | 16 482 463 Core . | . . . Treads 713 | . 305 408 Legs 13 | 13 . . Wheels 235 | 3 177 55 Hover . | . . . Flight . | . . . Fastest Speed 80 | 80 80 95 Average Speed 140 | 112 130 152 Slowest Speed 160 | 120 160 160 Overloaded Moves . | . . . Propulsion Burnouts . | . . . Robots Hopped . | . . . Cave-ins Triggered . | . . . Exploration Rate (%) 39 | 2 67 50 Regions Visited 2 Branch Regions 1 Pre-discovered Areas 1 | . . 1 Known Exits Taken 1 | . 1 . Unknown Exits Taken 1 | 1 . . Scrap Searched 1 | . . 1 Spaces Dug 6 | . 6 . Terrain Destroyed 24 | . 17 7 Melee 6 | . 6 . Projectile . | . . . AOE 18 | . 11 7 Terrain Rammed . | . . . Walls Destroyed . | . . . Machines Disabled . | . . . Actions | -11 -10 -10 --------- Run | Yrd Mat Min Total 1518 | 25 739 754 Wait 419 | . 188 231 Move 959 | 15 481 463 Hop . | . . . Pick Up 16 | 1 8 7 Fast Attach 1 | 1 . . Attach 6 | . 2 4 Detach . | . . . Swap 23 | 2 13 8 Drop 8 | 2 2 4 Fire 65 | 4 32 29 Melee 13 | . 13 . Ram . | . . . Kick . | . . . Crush 4 | . . 4 Escape Stasis . | . . . Rewire . | . . . Trap 4 | . . 4 Miscellaneous . | . . . Route ------- -11/Scrapyard -10/Materials (discovered 4 exits: [*Mat x2] / *Min x2) -10/Mines (discovered 1 exit: [*Mat]) History --------- Turn | Location | Event 1 | -11/Scrapyard | Discovered new exit (range 3) 37 | -11/Scrapyard | Entered Materials 62 | -10/Materials | Discovered new exit (range 15) 97 | -10/Materials | Identified exit to Mines 160 | -10/Materials | Discovered new exit (range 3) 302 | -10/Materials | Build established: Mutant 750 | -10/Materials | Discovered new exit (range 14) 958 | -10/Materials | Learned 2 Mines zone layouts 1016 | -10/Materials | Entered Mines 1208 | -10/Mines | YI-UF0 nonchalantly dropped a Grenade Launcher on the ground 1250 | -10/Mines | Assembled infested the area 1255 | -10/Mines | Assisted by a Guerilla fighting off Assembled 1396 | -10/Mines | Found a hidden stash of uninstalled traps 1414 | -10/Mines | Learned location of Zion (-6) 1419 | -10/Mines | Discovered new exit (range 3) 1888 | -10/Mines | Core integrity fell below 50% 1903 | -10/Mines | Core integrity fell below 20% 2072 | -10/Mines | Destroyed self with Grenade Launcher Last Messages --------------- 02038_ Dropped EMP Trap. 02039_ Installed EMP Trap. 02040_ R-06 Scavenger collects Terrain Scan Processor. 02041_ as-92717 sneak attacks. 02041_ U-05 Engineer destroyed. 02042_ Y3>O VM YE WVJ2OTDAUVLXF1A|Q|V/9I 02047_ as-07080 triggered EMP Trap. 02047_ A bubble of electromagnetic force engulfs the area. 02051_ as-07080 suffers critical hit (Burn). 02060_ R-06 Scavenger destroyed. 02064_ K-01 Serf collects debris. 02065_ Destroyed Asb. Rifle. 02067_ EM Pulse Gun destroyed. 02069_ Particle Gun destroyed. 02069_ Destroyed Particle Gun. 02069_ K-01 Serf destroyed. 02069_ Lgt. Treads destroyed. 02070_ System corrupted: Heat flow error (+198). 02072_ Overheating: Energy bleed (-75). 02072_ Destroyed Asb. Hover Unit. Map ----- +----------------------------------------------------+ | ???????????????????????????????????/??????? | | ???????????????????????????????????!??????? | | ??????????????????????????????????? ??????? | | ??????????????????????????????????# ??????? | | ???????????????????????????????#?? ??????? | | ??????????????????????????????? ?? %??????? | | ????????????????????????? ? ??? # ??????? | | ?????????????????????????? ? ? ??????? | | ?????????????????????????? ?? # ##?????? | | ??????????????????????????# #??? ??????? | | ??????????????????????????# =#??? ??????? | | ?????????????????????????## %#???# #??????? | | ????????????????????????## =!#???# #?#####? | | ???????????????????????## !%##### ### ## | | ?????????????#######???# !!== # | | ?????????????#=! #???# """" | | ?????????????# ### #????#*""""= #### | | ?????????????# #?# #?####%""""%##??# # | | ??????#?###### #?# #?#=%!|%*=!*#???## ## | | ??????# # # ###=###!######==#????## ##? | | ???????# ! ##=*%%!#????# #?????####?? | | ????????#% !=#####%#????# #??????????? | | ?????????# # =!%= ##!#????# #??????????? | | ?????????### !**| ##%#????# ??????????? | | ??####????## =%=a ## #????#####?????????? | | ??# ##???# % @ % #??????????????????? | | ??# #???# # ##??????????????????? | | ??## #???## ## #####???????????????????? | | ??## ##???#% ### #???????????????????????? | | ?## ##### #?# #???????????????????????? | | ?# #?# #???????????????????????? | | ?# #?# #???????????????????????? | | ?# ########### ####????????????????????? | | ?## #?????## ##???????????????????? | | ??## < #????# #???????????????????? | | ???# #???# #???????????????????? | | ???# #???## ##???????????????????? | | ???## ##????#########????????????????????? | | ????####??????????????????????????????????? | | ??????????????????????????????????????????? | | ??????????????????????????????????????????? | | ??????????????????????????????????????????? | | ??????????????????????????????????????????? | | ??????????????????????????????????????????? | | ??????????????????????????????????????????? | | ??????????????????????????????????????????? | | | | | | | | | +----------------------------------------------------+ Best States ------------- Heat Dissipation 39 Energy Generation 10 Energy Capacity 500 Matter Stores 300 Matter Capacity 300 Sight Range 16 Terrain Scan Range 16 Terrain Scan Density 10 Core Shielding 20 Evasion (%) 45 Recoil Reduction 2 Item Schematics ----------------- None Robot Schematics ------------------ None Fabricated ------------ Nothing Alien Tech Used ----------------- None Achievements -------------- None Challenges ------------ None Game ------ Seed AlloyBoreWartreads Manual? 0 Play Time 00:17:31 Cumulative 42.5 hours Start 2025.03.27 @ 21:51:14 End 2025.03.27 @ 22:06:26 Sessions 1 Manual Loads 0 Difficulty Rogue Special Mode None Game No. 51 Rogue 51 Adventurer 0 Explorer 0 Win Type - Total 0 Types 0/0/0/0/0/0/0/0/0 Lore% 12 Gallery% 32 Achievement% 26 Wizard Run 0 Options --------- Layout 0 ASCII 0 Keyboard 1 Movement Numpad Keybinds 0 Fullscreen 1 Font 24/Terminus Map View 76x50 Zoom Use 0% Tactical HUD 1 Map Filters NONE Filters NONE Steam 1 RUN: 75ec991f-f92b-4fb0-a701-2738d8e80cb0